{"text_format":"3","workbook":"xlsx","n_sheets":14,"sheets":["Tipps","Zusammenfassung","Jan","Feb","Mrz","Apr","Mai","Jun","Jul","Aug","Sep","Okt","Nov","Dez"],"not_rendered":{"charts":1,"defined_names":27},"read":"whole","date_system":"1900"}

{"sheet":"Tipps","index":0,"n_rows":18,"n_cols":1,"rows_kept":18}
["VORLAGENTIPPS"]
["Gibt es eine einfache Möglichkeit, zwischen dem Zusammenfassungsblatt mit den Ausgabentrends und den monatlichen Ausgabendetails zu wechseln?"]
["Um schnell zu den Ausgaben für einen bestimmten Monat zu navigieren, klicken Sie auf den zugeordneten Navigationslink oberhalb des Diagramms, wie etwa den Navigationslink Jan in Zelle B2. Um dann wieder zum Arbeitsblatt mit den Ausgabentrends zurückzukehren, klicken Sie auf den Navigationslink Zusammenfassung in Zelle D1. "]
["Um zu diesem Arbeitsblatt mit Tipps zurückzukehren, wählen Sie auf dem Zusammenfassungs-Arbeitsblatt N2 aus. Wählen Sie in allen Monatsarbeitsblättern E1 aus."]
["Wie füge ich der Ausgabenzusammenfassung eine neue Ausgabenart oder neue monatliche Ausgaben hinzu?"]
["Die Ausgabenzusammenfassung unterhalb des Diagramms und die Ausgabendetails für jeden Monat sind Excel-Tabellen. Um beliebigen Excel-Tabellen neue Zeilen hinzuzufügen, gehen Sie folgendermaßen vor:"]
[{"$f":"ROW(A1)&\". Wenn die Tabelle nicht über eine Ergebniszeile verfügt, beginnen Sie unterhalb der Tabelle mit der Eingabe, dann wird sie automatisch erweitert, wenn Sie die EINGABETASTE oder TAB-TASTE drücken.\"","v":"1. Wenn die Tabelle nicht über eine Ergebniszeile verfügt, beginnen Sie unterhalb der Tabelle mit der Eingabe, dann wird sie automatisch erweitert, wenn Sie die EINGABETASTE oder TAB-TASTE drücken."}]
[{"$f":"ROW(A2)&\". Platzieren Sie Ihren Zeiger in der letzten Zelle oberhalb der Ergebniszeile, wie etwa der Summe der letzten Ausgaben, und drücken Sie dann die TAB-TASTE.\"","v":"2. Platzieren Sie Ihren Zeiger in der letzten Zelle oberhalb der Ergebniszeile, wie etwa der Summe der letzten Ausgaben, und drücken Sie dann die TAB-TASTE."}]
[{"$f":"ROW(A3)&\". Klicken Sie mit der rechten Maustaste in der Tabelle, zeigen Sie im Popupmenü auf \"\"Einfügen\"\", und klicken Sie dann auf \"\"Tabellenzeilen nach oben\"\" oder \"\"Tabellenzeilen nach unten\"\".\"","v":"3. Klicken Sie mit der rechten Maustaste in der Tabelle, zeigen Sie im Popupmenü auf \"Einfügen\", und klicken Sie dann auf \"Tabellenzeilen nach oben\" oder \"Tabellenzeilen nach unten\"."}]
[{"$f":"ROW(A4)&\". Platzieren Sie in der unteren rechten Tabellenecke den Mauszeiger auf dem Ziehpunkt zum Ändern der Tabellengröße, und ziehen Sie nach unten, um die Anzahl der verfügbaren Tabellenzeilen zu erhöhen.\"","v":"4. Platzieren Sie in der unteren rechten Tabellenecke den Mauszeiger auf dem Ziehpunkt zum Ändern der Tabellengröße, und ziehen Sie nach unten, um die Anzahl der verfügbaren Tabellenzeilen zu erhöhen."}]
["Geben Sie die Ausgabe auf dem Arbeitsblatt Zusammenfassung in der Tabelle Ausgabenzusammenfassung in die Spalte Ausgaben ein."]
["Fügen Sie den Ausgabenbetrag für jede Ausgabenart im Monatsarbeitsblatt ein, auf den sich die Ausgabe bezieht."]
["Beispiel: \"Ausgabe 1\" kommt in den Monaten Januar bis Juni und im Dezember vor. "]
[{"$f":"ROW(A1)&\". Ausgabe 1 wird im Zusammenfassungsarbeitsblatt unter \"\"Ausgabe\"\" in der Tabelle \"\"Ausgabenzusammenfassung\"\" (als Titel für die Art der Ausgabe) eingegeben\"","v":"1. Ausgabe 1 wird im Zusammenfassungsarbeitsblatt unter \"Ausgabe\" in der Tabelle \"Ausgabenzusammenfassung\" (als Titel für die Art der Ausgabe) eingegeben"}]
[{"$f":"ROW(A2)&\". Geben Sie für jeden Monat, in dem die Ausgabe auftritt, den Betrag für die Ausgabe im entsprechenden Monatsarbeitsblatt ein.\"","v":"2. Geben Sie für jeden Monat, in dem die Ausgabe auftritt, den Betrag für die Ausgabe im entsprechenden Monatsarbeitsblatt ein."}]
[{"$f":"ROW(A3)&\". Die Ausgabenart aus dem Ausgabenzusammenfassungs-Arbeitsblatt erstellt eine Kategorieliste für die Spalte \"\"Kategorie\"\" auf dem Arbeitsblatt der einzelnen Monate.\"","v":"3. Die Ausgabenart aus dem Ausgabenzusammenfassungs-Arbeitsblatt erstellt eine Kategorieliste für die Spalte \"Kategorie\" auf dem Arbeitsblatt der einzelnen Monate."}]
[{"$f":"ROW(A4)&\". Verwenden Sie die Kategorieliste in der Spalte \"\"Kategorie\"\", um die entsprechende Ausgabenart für den eingegebenen Ausgabenbetrag auszuwählen\"","v":"4. Verwenden Sie die Kategorieliste in der Spalte \"Kategorie\", um die entsprechende Ausgabenart für den eingegebenen Ausgabenbetrag auszuwählen"}]
[{"$f":"ROW(A5)&\". Um für einen beliebigen Monat neue Ausgaben hinzuzufügen, fügen Sie der Ausgabenzusammenfassungs-Tabelle auf dem Zusammenfassungs-Arbeitsblatt eine neue Zeile hinzu, \"&\"und geben Sie dann entsprechende Ausgabendetails auf dem Monatsarbeitsblatt für die Ausgabe ein.\"","v":"5. Um für einen beliebigen Monat neue Ausgaben hinzuzufügen, fügen Sie der Ausgabenzusammenfassungs-Tabelle auf dem Zusammenfassungs-Arbeitsblatt eine neue Zeile hinzu, und geben Sie dann entsprechende Ausgabendetails auf dem Monatsarbeitsblatt für die Ausgabe ein."}]

{"sheet":"Zusammenfassung","index":1,"n_rows":10,"n_cols":15,"rows_kept":10}
["AUSGABENTRENDS"]
[null,"Jan","Feb","Mrz","Apr","Mai","Jun","Jul","Aug","Sep","Okt","Nov","Dez","Tipps"]
[]
["Ausgaben","Jan","Feb","Mrz","Apr","Mai","Jun","Jul","Aug","Sep","Okt","Nov","Dez","Ergebnis","Trend"]
["Ausgabe 1",{"$f":"SUMIFS(AgbJan[Betrag],AgbJan[Kategorie],Ausgabenzusammenfassung[Ausgaben])","v":{"v":33,"d":"33.00"}},{"$f":"SUMIFS(AgbFeb[Betrag],AgbFeb[Kategorie],Ausgabenzusammenfassung[Ausgaben])","v":{"v":375,"d":"375.00"}},{"$f":"SUMIFS(AgbMrz[Betrag],AgbMrz[Kategorie],Ausgabenzusammenfassung[Ausgaben])","v":{"v":33,"d":"33.00"}},{"$f":"SUMIFS(AgbApr[Betrag],AgbApr[Kategorie],Ausgabenzusammenfassung[Ausgaben])","v":{"v":45,"d":"45.00"}},{"$f":"SUMIFS(AgbMai[Betrag],AgbMai[Kategorie],Ausgabenzusammenfassung[Ausgaben])","v":{"v":375,"d":"375.00"}},{"$f":"SUMIFS(AgbJun[Betrag],AgbJun[Kategorie],Ausgabenzusammenfassung[Ausgaben])","v":{"v":201,"d":"201.00"}},{"$f":"SUMIFS(AgbJul[Betrag],AgbJul[Kategorie],Ausgabenzusammenfassung[Ausgaben])","v":{"v":0,"d":"0.00"}},{"$f":"SUMIFS(AgbAug[Betrag],AgbAug[Kategorie],Ausgabenzusammenfassung[Ausgaben])","v":{"v":0,"d":"0.00"}},{"$f":"SUMIFS(AgbSep[Betrag],AgbSep[Kategorie],Ausgabenzusammenfassung[Ausgaben])","v":{"v":0,"d":"0.00"}},{"$f":"SUMIFS(AgbOkt[Betrag],AgbOkt[Kategorie],Ausgabenzusammenfassung[Ausgaben])","v":{"v":0,"d":"0.00"}},{"$f":"SUMIFS(AgbNov[Betrag],AgbNov[Kategorie],Ausgabenzusammenfassung[Ausgaben])","v":{"v":0,"d":"0.00"}},{"$f":"SUMIFS(AgbDez[Betrag],AgbDez[Kategorie],Ausgabenzusammenfassung[Ausgaben])","v":{"v":201,"d":"201.00"}},{"$f":"SUM(Ausgabenzusammenfassung[[#This Row],[Jan]:[Dez]])","v":{"v":1263,"d":"1,263.00"}}]
["Ausgabe 2",{"$f":"SUMIFS(AgbJan[Betrag],AgbJan[Kategorie],Ausgabenzusammenfassung[Ausgaben])","v":{"v":238,"d":"238.00"}},{"$f":"SUMIFS(AgbFeb[Betrag],AgbFeb[Kategorie],Ausgabenzusammenfassung[Ausgaben])","v":{"v":238,"d":"238.00"}},{"$f":"SUMIFS(AgbMrz[Betrag],AgbMrz[Kategorie],Ausgabenzusammenfassung[Ausgaben])","v":{"v":238,"d":"238.00"}},{"$f":"SUMIFS(AgbApr[Betrag],AgbApr[Kategorie],Ausgabenzusammenfassung[Ausgaben])","v":{"v":123,"d":"123.00"}},{"$f":"SUMIFS(AgbMai[Betrag],AgbMai[Kategorie],Ausgabenzusammenfassung[Ausgaben])","v":{"v":111,"d":"111.00"}},{"$f":"SUMIFS(AgbJun[Betrag],AgbJun[Kategorie],Ausgabenzusammenfassung[Ausgaben])","v":{"v":98,"d":"98.00"}},{"$f":"SUMIFS(AgbJul[Betrag],AgbJul[Kategorie],Ausgabenzusammenfassung[Ausgaben])","v":{"v":0,"d":"0.00"}},{"$f":"SUMIFS(AgbAug[Betrag],AgbAug[Kategorie],Ausgabenzusammenfassung[Ausgaben])","v":{"v":0,"d":"0.00"}},{"$f":"SUMIFS(AgbSep[Betrag],AgbSep[Kategorie],Ausgabenzusammenfassung[Ausgaben])","v":{"v":0,"d":"0.00"}},{"$f":"SUMIFS(AgbOkt[Betrag],AgbOkt[Kategorie],Ausgabenzusammenfassung[Ausgaben])","v":{"v":0,"d":"0.00"}},{"$f":"SUMIFS(AgbNov[Betrag],AgbNov[Kategorie],Ausgabenzusammenfassung[Ausgaben])","v":{"v":0,"d":"0.00"}},{"$f":"SUMIFS(AgbDez[Betrag],AgbDez[Kategorie],Ausgabenzusammenfassung[Ausgaben])","v":{"v":440,"d":"440.00"}},{"$f":"SUM(Ausgabenzusammenfassung[[#This Row],[Jan]:[Dez]])","v":{"v":1486,"d":"1,486.00"}}]
["Ausgabe 3",{"$f":"SUMIFS(AgbJan[Betrag],AgbJan[Kategorie],Ausgabenzusammenfassung[Ausgaben])","v":{"v":110,"d":"110.00"}},{"$f":"SUMIFS(AgbFeb[Betrag],AgbFeb[Kategorie],Ausgabenzusammenfassung[Ausgaben])","v":{"v":110,"d":"110.00"}},{"$f":"SUMIFS(AgbMrz[Betrag],AgbMrz[Kategorie],Ausgabenzusammenfassung[Ausgaben])","v":{"v":110,"d":"110.00"}},{"$f":"SUMIFS(AgbApr[Betrag],AgbApr[Kategorie],Ausgabenzusammenfassung[Ausgaben])","v":{"v":125,"d":"125.00"}},{"$f":"SUMIFS(AgbMai[Betrag],AgbMai[Kategorie],Ausgabenzusammenfassung[Ausgaben])","v":{"v":333,"d":"333.00"}},{"$f":"SUMIFS(AgbJun[Betrag],AgbJun[Kategorie],Ausgabenzusammenfassung[Ausgaben])","v":{"v":122,"d":"122.00"}},{"$f":"SUMIFS(AgbJul[Betrag],AgbJul[Kategorie],Ausgabenzusammenfassung[Ausgaben])","v":{"v":0,"d":"0.00"}},{"$f":"SUMIFS(AgbAug[Betrag],AgbAug[Kategorie],Ausgabenzusammenfassung[Ausgaben])","v":{"v":0,"d":"0.00"}},{"$f":"SUMIFS(AgbSep[Betrag],AgbSep[Kategorie],Ausgabenzusammenfassung[Ausgaben])","v":{"v":0,"d":"0.00"}},{"$f":"SUMIFS(AgbOkt[Betrag],AgbOkt[Kategorie],Ausgabenzusammenfassung[Ausgaben])","v":{"v":0,"d":"0.00"}},{"$f":"SUMIFS(AgbNov[Betrag],AgbNov[Kategorie],Ausgabenzusammenfassung[Ausgaben])","v":{"v":0,"d":"0.00"}},{"$f":"SUMIFS(AgbDez[Betrag],AgbDez[Kategorie],Ausgabenzusammenfassung[Ausgaben])","v":{"v":122,"d":"122.00"}},{"$f":"SUM(Ausgabenzusammenfassung[[#This Row],[Jan]:[Dez]])","v":{"v":1032,"d":"1,032.00"}}]
["Ausgabe 4",{"$f":"SUMIFS(AgbJan[Betrag],AgbJan[Kategorie],Ausgabenzusammenfassung[Ausgaben])","v":{"v":426,"d":"426.00"}},{"$f":"SUMIFS(AgbFeb[Betrag],AgbFeb[Kategorie],Ausgabenzusammenfassung[Ausgaben])","v":{"v":84,"d":"84.00"}},{"$f":"SUMIFS(AgbMrz[Betrag],AgbMrz[Kategorie],Ausgabenzusammenfassung[Ausgaben])","v":{"v":84,"d":"84.00"}},{"$f":"SUMIFS(AgbApr[Betrag],AgbApr[Kategorie],Ausgabenzusammenfassung[Ausgaben])","v":{"v":426,"d":"426.00"}},{"$f":"SUMIFS(AgbMai[Betrag],AgbMai[Kategorie],Ausgabenzusammenfassung[Ausgaben])","v":{"v":125,"d":"125.00"}},{"$f":"SUMIFS(AgbJun[Betrag],AgbJun[Kategorie],Ausgabenzusammenfassung[Ausgaben])","v":{"v":187,"d":"187.00"}},{"$f":"SUMIFS(AgbJul[Betrag],AgbJul[Kategorie],Ausgabenzusammenfassung[Ausgaben])","v":{"v":0,"d":"0.00"}},{"$f":"SUMIFS(AgbAug[Betrag],AgbAug[Kategorie],Ausgabenzusammenfassung[Ausgaben])","v":{"v":0,"d":"0.00"}},{"$f":"SUMIFS(AgbSep[Betrag],AgbSep[Kategorie],Ausgabenzusammenfassung[Ausgaben])","v":{"v":0,"d":"0.00"}},{"$f":"SUMIFS(AgbOkt[Betrag],AgbOkt[Kategorie],Ausgabenzusammenfassung[Ausgaben])","v":{"v":0,"d":"0.00"}},{"$f":"SUMIFS(AgbNov[Betrag],AgbNov[Kategorie],Ausgabenzusammenfassung[Ausgaben])","v":{"v":0,"d":"0.00"}},{"$f":"SUMIFS(AgbDez[Betrag],AgbDez[Kategorie],Ausgabenzusammenfassung[Ausgaben])","v":{"v":187,"d":"187.00"}},{"$f":"SUM(Ausgabenzusammenfassung[[#This Row],[Jan]:[Dez]])","v":{"v":1519,"d":"1,519.00"}}]
["Ausgabe 5",{"$f":"SUMIFS(AgbJan[Betrag],AgbJan[Kategorie],Ausgabenzusammenfassung[Ausgaben])","v":{"v":54,"d":"54.00"}},{"$f":"SUMIFS(AgbFeb[Betrag],AgbFeb[Kategorie],Ausgabenzusammenfassung[Ausgaben])","v":{"v":54,"d":"54.00"}},{"$f":"SUMIFS(AgbMrz[Betrag],AgbMrz[Kategorie],Ausgabenzusammenfassung[Ausgaben])","v":{"v":109,"d":"109.00"}},{"$f":"SUMIFS(AgbApr[Betrag],AgbApr[Kategorie],Ausgabenzusammenfassung[Ausgaben])","v":{"v":98,"d":"98.00"}},{"$f":"SUMIFS(AgbMai[Betrag],AgbMai[Kategorie],Ausgabenzusammenfassung[Ausgaben])","v":{"v":33,"d":"33.00"}},{"$f":"SUMIFS(AgbJun[Betrag],AgbJun[Kategorie],Ausgabenzusammenfassung[Ausgaben])","v":{"v":441,"d":"441.00"}},{"$f":"SUMIFS(AgbJul[Betrag],AgbJul[Kategorie],Ausgabenzusammenfassung[Ausgaben])","v":{"v":0,"d":"0.00"}},{"$f":"SUMIFS(AgbAug[Betrag],AgbAug[Kategorie],Ausgabenzusammenfassung[Ausgaben])","v":{"v":0,"d":"0.00"}},{"$f":"SUMIFS(AgbSep[Betrag],AgbSep[Kategorie],Ausgabenzusammenfassung[Ausgaben])","v":{"v":0,"d":"0.00"}},{"$f":"SUMIFS(AgbOkt[Betrag],AgbOkt[Kategorie],Ausgabenzusammenfassung[Ausgaben])","v":{"v":0,"d":"0.00"}},{"$f":"SUMIFS(AgbNov[Betrag],AgbNov[Kategorie],Ausgabenzusammenfassung[Ausgaben])","v":{"v":0,"d":"0.00"}},{"$f":"SUMIFS(AgbDez[Betrag],AgbDez[Kategorie],Ausgabenzusammenfassung[Ausgaben])","v":{"v":99,"d":"99.00"}},{"$f":"SUM(Ausgabenzusammenfassung[[#This Row],[Jan]:[Dez]])","v":{"v":888,"d":"888.00"}}]
["Ergebnis",{"$f":"SUBTOTAL(109,Ausgabenzusammenfassung[Jan])","v":{"v":861,"d":"861.00"}},{"$f":"SUBTOTAL(109,Ausgabenzusammenfassung[Feb])","v":{"v":861,"d":"861.00"}},{"$f":"SUBTOTAL(109,Ausgabenzusammenfassung[Mrz])","v":{"v":574,"d":"574.00"}},{"$f":"SUBTOTAL(109,Ausgabenzusammenfassung[Apr])","v":{"v":817,"d":"817.00"}},{"$f":"SUBTOTAL(109,Ausgabenzusammenfassung[Mai])","v":{"v":977,"d":"977.00"}},{"$f":"SUBTOTAL(109,Ausgabenzusammenfassung[Jun])","v":{"v":1049,"d":"1,049.00"}},{"$f":"SUBTOTAL(109,Ausgabenzusammenfassung[Jul])","v":{"v":0,"d":"0.00"}},{"$f":"SUBTOTAL(109,Ausgabenzusammenfassung[Aug])","v":{"v":0,"d":"0.00"}},{"$f":"SUBTOTAL(109,Ausgabenzusammenfassung[Sep])","v":{"v":0,"d":"0.00"}},{"$f":"SUBTOTAL(109,Ausgabenzusammenfassung[Okt])","v":{"v":0,"d":"0.00"}},{"$f":"SUBTOTAL(109,Ausgabenzusammenfassung[Nov])","v":{"v":0,"d":"0.00"}},{"$f":"SUBTOTAL(109,Ausgabenzusammenfassung[Dez])","v":{"v":1049,"d":"1,049.00"}},{"$f":"SUBTOTAL(109,Ausgabenzusammenfassung[Ergebnis])","v":{"v":6188,"d":"6,188.00"}}]

{"sheet":"Jan","index":2,"n_rows":9,"n_cols":5,"rows_kept":9,"merged":[[0,0,0,2]]}
["AUSGABEN JANUAR",null,null,"Zusammenfassung","Tipps"]
["Datum","PO-Nr.","Betrag","Kategorie","Beschreibung"]
[{"$f":"DATE(YEAR(TODAY()),1,4)","v":"2017-01-04"},"A-12345",{"v":33,"d":"33.00"},"Ausgabe 1","Betriebsmittel"]
[{"$f":"DATE(YEAR(TODAY()),1,5)","v":"2017-01-05"},"A-12345",{"v":238,"d":"238.00"},"Ausgabe 2"]
[null,null,{"v":342,"d":"342.00"},"Ausgabe 4"]
[null,null,{"v":110,"d":"110.00"},"Ausgabe 3"]
[null,null,{"v":84,"d":"84.00"},"Ausgabe 4"]
[null,null,{"v":54,"d":"54.00"},"Ausgabe 5"]
["Ergebnis",null,{"$f":"SUBTOTAL(109,AgbJan[Betrag])","v":{"v":861,"d":"861.00"}}]

{"sheet":"Feb","index":3,"n_rows":9,"n_cols":5,"rows_kept":9,"merged":[[0,0,0,2]]}
["AUSGABEN FEBRUAR",null,null,"Zusammenfassung","Tipps"]
["Datum","PO-Nr.","Betrag","Kategorie","Beschreibung"]
[{"$f":"DATE(YEAR(TODAY()),2,3)","v":"2017-02-03"},"A-12345",{"v":33,"d":"33.00"},"Ausgabe 1","Betriebsmittel"]
[{"$f":"DATE(YEAR(TODAY()),2,4)","v":"2017-02-04"},"A-12345",{"v":238,"d":"238.00"},"Ausgabe 2"]
[null,null,{"v":342,"d":"342.00"},"Ausgabe 1"]
[null,null,{"v":110,"d":"110.00"},"Ausgabe 3"]
[null,null,{"v":84,"d":"84.00"},"Ausgabe 4"]
[null,null,{"v":54,"d":"54.00"},"Ausgabe 5"]
["Ergebnis",null,{"$f":"SUBTOTAL(109,AgbFeb[Betrag])","v":{"v":861,"d":"861.00"}}]

{"sheet":"Mrz","index":4,"n_rows":9,"n_cols":5,"rows_kept":9,"merged":[[0,0,0,2]]}
["AUSGABEN MÄRZ",null,null,"Zusammenfassung","Tipps"]
["Datum","PO-Nr.","Betrag","Kategorie","Beschreibung"]
[{"$f":"DATE(YEAR(TODAY()),3,5)","v":"2017-03-05"},"A-12345",{"v":33,"d":"33.00"},"Ausgabe 1","Betriebsmittel"]
[{"$f":"DATE(YEAR(TODAY()),3,6)","v":"2017-03-06"},"A-12345",{"v":238,"d":"238.00"},"Ausgabe 2"]
[null,null,{"v":55,"d":"55.00"},"Ausgabe 5"]
[null,null,{"v":110,"d":"110.00"},"Ausgabe 3"]
[null,null,{"v":84,"d":"84.00"},"Ausgabe 4"]
[null,null,{"v":54,"d":"54.00"},"Ausgabe 5"]
["Ergebnis",null,{"$f":"SUBTOTAL(109,AgbMrz[Betrag])","v":{"v":574,"d":"574.00"}}]

{"sheet":"Apr","index":5,"n_rows":9,"n_cols":5,"rows_kept":9,"merged":[[0,0,0,2]]}
["AUSGABEN APRIL",null,null,"Zusammenfassung","Tipps"]
["Datum","PO-Nr.","Betrag","Kategorie","Beschreibung"]
[{"$f":"DATE(YEAR(TODAY()),4,4)","v":"2017-04-04"},"A-12345",{"v":45,"d":"45.00"},"Ausgabe 1","Betriebsmittel"]
[{"$f":"DATE(YEAR(TODAY()),4,8)","v":"2017-04-08"},"A-12345",{"v":123,"d":"123.00"},"Ausgabe 2"]
[null,null,{"v":342,"d":"342.00"},"Ausgabe 4"]
[null,null,{"v":125,"d":"125.00"},"Ausgabe 3"]
[null,null,{"v":84,"d":"84.00"},"Ausgabe 4"]
[null,null,{"v":98,"d":"98.00"},"Ausgabe 5"]
["Ergebnis",null,{"$f":"SUBTOTAL(109,AgbApr[Betrag])","v":{"v":817,"d":"817.00"}}]

{"sheet":"Mai","index":6,"n_rows":9,"n_cols":5,"rows_kept":9,"merged":[[0,0,0,2]]}
["AUSGABEN MAI",null,null,"Zusammenfassung","Tipps"]
["Datum","PO-Nr.","Betrag","Kategorie","Beschreibung"]
[{"$f":"DATE(YEAR(TODAY()),5,3)","v":"2017-05-03"},"A-12345",{"v":33,"d":"33.00"},"Ausgabe 1","Betriebsmittel"]
[{"$f":"DATE(YEAR(TODAY()),5,8)","v":"2017-05-08"},"A-12345",{"v":111,"d":"111.00"},"Ausgabe 2"]
[null,null,{"v":342,"d":"342.00"},"Ausgabe 1"]
[null,null,{"v":333,"d":"333.00"},"Ausgabe 3"]
[null,null,{"v":125,"d":"125.00"},"Ausgabe 4"]
[null,null,{"v":33,"d":"33.00"},"Ausgabe 5"]
["Ergebnis",null,{"$f":"SUBTOTAL(109,AgbMai[Betrag])","v":{"v":977,"d":"977.00"}}]

{"sheet":"Jun","index":7,"n_rows":9,"n_cols":5,"rows_kept":9,"merged":[[0,0,0,2]]}
["AUSGABEN JUNI",null,null,"Zusammenfassung","Tipps"]
["Datum","PO-Nr.","Betrag","Kategorie","Beschreibung"]
[{"$f":"DATE(YEAR(TODAY()),6,7)","v":"2017-06-07"},"A-12345",{"v":201,"d":"201.00"},"Ausgabe 1","Betriebsmittel"]
[{"$f":"DATE(YEAR(TODAY()),6,8)","v":"2017-06-08"},"A-12345",{"v":98,"d":"98.00"},"Ausgabe 2"]
[null,null,{"v":342,"d":"342.00"},"Ausgabe 5"]
[null,null,{"v":122,"d":"122.00"},"Ausgabe 3"]
[null,null,{"v":187,"d":"187.00"},"Ausgabe 4"]
[null,null,{"v":99,"d":"99.00"},"Ausgabe 5"]
["Ergebnis",null,{"$f":"SUBTOTAL(109,AgbJun[Betrag])","v":{"v":1049,"d":"1,049.00"}}]

{"sheet":"Jul","index":8,"n_rows":9,"n_cols":5,"rows_kept":9,"merged":[[0,0,0,2]]}
["AUSGABEN JULI",null,null,"Zusammenfassung","Tipps"]
["Datum","PO-Nr.","Betrag","Kategorie","Beschreibung"]
[{"$f":"DATE(YEAR(TODAY()),7,9)","v":"2017-07-09"},"A-12345",null,"Ausgabe 1","Betriebsmittel"]
[{"$f":"DATE(YEAR(TODAY()),7,14)","v":"2017-07-14"},"A-12345",null,"Ausgabe 2"]
[{"$nulls":3},"Ausgabe 2"]
[{"$nulls":3},"Ausgabe 3"]
[{"$nulls":3},"Ausgabe 4"]
[{"$nulls":3},"Ausgabe 5"]
["Ergebnis",null,{"$f":"SUBTOTAL(109,AgbJul[Betrag])","v":{"v":0,"d":"0.00"}}]

{"sheet":"Aug","index":9,"n_rows":9,"n_cols":5,"rows_kept":9,"merged":[[0,0,0,2]]}
["AUSGABEN AUGUST",null,null,"Zusammenfassung","Tipps"]
["Datum","PO-Nr.","Betrag","Kategorie","Beschreibung"]
[{"$f":"DATE(YEAR(TODAY()),8,8)","v":"2017-08-08"},"A-12345",null,"Ausgabe 1","Betriebsmittel"]
[{"$f":"DATE(YEAR(TODAY()),8,9)","v":"2017-08-09"},"A-12345",null,"Ausgabe 2"]
[{"$nulls":3},"Ausgabe 2"]
[{"$nulls":3},"Ausgabe 3"]
[{"$nulls":3},"Ausgabe 4"]
[{"$nulls":3},"Ausgabe 5"]
["Ergebnis",null,{"$f":"SUBTOTAL(109,AgbAug[Betrag])","v":{"v":0,"d":"0.00"}}]

{"sheet":"Sep","index":10,"n_rows":9,"n_cols":5,"rows_kept":9,"merged":[[0,0,0,2]]}
["AUSGABEN SEPTEMBER",null,null,"Zusammenfassung","Tipps"]
["Datum","PO-Nr.","Betrag","Kategorie","Beschreibung"]
[{"$f":"DATE(YEAR(TODAY()),9,9)","v":"2017-09-09"},"A-12345",null,"Ausgabe 1","Betriebsmittel"]
[{"$f":"DATE(YEAR(TODAY()),9,15)","v":"2017-09-15"},"A-12345",null,"Ausgabe 2"]
[{"$nulls":3},"Ausgabe 2"]
[{"$nulls":3},"Ausgabe 3"]
[{"$nulls":3},"Ausgabe 4"]
[{"$nulls":3},"Ausgabe 5"]
["Ergebnis",null,{"$f":"SUBTOTAL(109,AgbSep[Betrag])","v":{"v":0,"d":"0.00"}}]

{"sheet":"Okt","index":11,"n_rows":9,"n_cols":5,"rows_kept":9,"merged":[[0,0,0,2]]}
["AUSGABEN OKTOBER",null,null,"Zusammenfassung","Tipps"]
["Datum","PO-Nr.","Betrag","Kategorie","Beschreibung"]
[{"$f":"DATE(YEAR(TODAY()),10,10)","v":"2017-10-10"},"A-12345",null,"Ausgabe 1","Betriebsmittel"]
[{"$f":"DATE(YEAR(TODAY()),10,21)","v":"2017-10-21"},"A-12345",null,"Ausgabe 2"]
[{"$nulls":3},"Ausgabe 2"]
[{"$nulls":3},"Ausgabe 3"]
[{"$nulls":3},"Ausgabe 4"]
[{"$nulls":3},"Ausgabe 5"]
["Ergebnis",null,{"$f":"SUBTOTAL(109,AgbOkt[Betrag])","v":{"v":0,"d":"0.00"}}]

{"sheet":"Nov","index":12,"n_rows":9,"n_cols":5,"rows_kept":9,"merged":[[0,0,0,2]]}
["AUSGABEN NOVEMBER",null,null,"Zusammenfassung","Tipps"]
["Datum","PO-Nr.","Betrag","Kategorie","Beschreibung"]
[{"$f":"DATE(YEAR(TODAY()),11,14)","v":"2017-11-14"},"A-12345",null,"Ausgabe 1","Betriebsmittel"]
[{"$f":"DATE(YEAR(TODAY()),11,21)","v":"2017-11-21"},"A-12345",null,"Ausgabe 2"]
[{"$nulls":3},"Ausgabe 2"]
[{"$nulls":3},"Ausgabe 3"]
[{"$nulls":3},"Ausgabe 4"]
[{"$nulls":3},"Ausgabe 5"]
["Ergebnis",null,{"$f":"SUBTOTAL(109,AgbNov[Betrag])","v":{"v":0,"d":"0.00"}}]

{"sheet":"Dez","index":13,"n_rows":9,"n_cols":5,"rows_kept":9,"merged":[[0,0,0,2]]}
["AUSGABEN DEZEMBER",null,null,"Zusammenfassung","Tipps"]
["Datum","PO-Nr.","Betrag","Kategorie","Beschreibung"]
[{"$f":"DATE(YEAR(TODAY()),12,2)","v":"2017-12-02"},"A-12345",{"v":201,"d":"201.00"},"Ausgabe 1","Betriebsmittel"]
[{"$f":"DATE(YEAR(TODAY()),12,24)","v":"2017-12-24"},"A-12345",{"v":98,"d":"98.00"},"Ausgabe 2"]
[null,null,{"v":342,"d":"342.00"},"Ausgabe 2"]
[null,null,{"v":122,"d":"122.00"},"Ausgabe 3"]
[null,null,{"v":187,"d":"187.00"},"Ausgabe 4"]
[null,null,{"v":99,"d":"99.00"},"Ausgabe 5"]
["Ergebnis",null,{"$f":"SUBTOTAL(109,AgbDez[Betrag])","v":{"v":1049,"d":"1,049.00"}}]